bitfinex-derivatives/quotes_ETHF0:USTF0_20240826
["timestamp","ask_amount","ask_price","bid_price","bid_amount"]
[1724685158132,3.2078,2716.8,2716.0,0.92022]
[1724685158444,3.2078,2716.8,2716.5,0.36802]
[1724685158843,3.2078,2716.8,2716.2,1.44549328]
[1724685158844,3.2078,2716.8,2716.4,0.36802]
[1724685159047,3.2078,2716.8,2716.6,4.24478406]
[1724685159251,3.21092455,2716.8,2716.5,4.46028331]
[1724685159545,3.21092455,2716.8,2716.4,3.54802]
[1724685159755,3.21092455,2716.8,2716.6,4.24478406]
[1724685160047,3.21092455,2716.8,2716.5,4.24478406]
[1724685160243,0.00312455,2716.8,2716.5,0.36801]
[1724685160441,0.00312455,2716.8,2716.6,4.01643283]
[1724685160646,0.00312455,2716.8,2716.6,4.76303283]
[1724685160848,0.00312455,2716.8,2716.7,0.36799]
[1724685161047,0.00312455,2716.8,2716.7,3.6808]
[1724685161253,0.00312455,2716.8,2716.7,4.0495]
[1724685161445,0.00312455,2716.8,2716.7,15.00837465]
[1724685161744,0.00312455,2716.8,2716.7,20.00837465]
[1724685164653,0.00312455,2716.8,2716.7,15.00837465]
[1724685166348,0.00312455,2716.8,2716.7,20.00837465]
[1724685167150,3.5939,2717.8,2716.8,3.6808]
[1724685167347,3.5939,2717.8,2717.3,0.3679]
[1724685167552,0.36786,2717.7,2717.3,0.3679]
[1724685167859,0.36786,2717.7,2717.4,3.67832842]
[1724685168049,0.37226415,2717.7,2717.4,3.67832842]
[1724685168245,0.36788,2717.6,2717.4,3.67832842]
[1724685169153,0.37226415,2717.7,2717.4,3.67832842]
[1724685169351,0.00440415,2717.7,2717.4,3.67832842]
[1724685169550,0.37226415,2717.7,2717.4,3.67832842]
[1724685169846,0.36787,2717.6,2717.4,3.67832842]
[1724685170049,0.36788,2717.5,2717.3,0.00551724]
[1724685170457,0.3536,2717.4,2717.3,0.00551724]
[1724685172658,0.3536,2717.4,2717.3,0.37342724]
[1724685174667,0.3536,2717.4,2717.3,0.00551724]
[1724685175865,0.3536,2717.4,2717.3,0.37342724]
[1724685176866,0.3536,2717.4,2717.3,0.00551724]
[1724685178155,0.3536,2717.4,2717.3,0.37342724]
[1724685178356,0.3536,2717.4,2717.3,0.00551724]
[1724685178562,0.3536,2717.4,2717.3,0.37342724]
[1724685181765,4.0336,2717.4,2717.3,0.00551724]
[1724685181956,0.36794,2717.1,2716.8,0.36798]
[1724685182156,0.36793,2717.2,2716.9,0.36796]
[1724685182468,1.2903,2717.3,2716.5,0.3497]
[1724685182469,0.73842,2717.3,2717.0,0.36795]
[1724685182674,0.3705,2717.3,2717.0,0.36795]
[1724685182977,0.73842,2717.3,2717.0,0.36795]
[1724685183269,0.3705,2717.3,2717.1,0.36793]
[1724685183571,0.3705,2717.3,2717.0,0.36794]
[1724685183774,0.3705,2717.3,2717.1,0.36794]
[1724685184160,3.2078,2717.4,2716.9,0.00551724]
[1724685184365,4.187,2717.6,2717.4,0.36789]
[1724685184663,0.73380415,2717.7,2717.4,0.36789]
[1724685185165,1.09420415,2717.7,2717.1,6.3878]
[1724685185368,1.09420415,2717.7,2717.3,0.3679]
[1724685185769,1.09420415,2717.7,2717.2,4.04563618]
[1724685186273,1.09420415,2717.7,2717.3,0.3679]
[1724685186772,1.46206415,2717.7,2717.3,0.3679]
[1724685187071,1.09420415,2717.7,2717.4,0.36789]
[1724685187566,1.09420415,2717.7,2717.3,0.3679]
[1724685188875,1.09420415,2717.7,2717.4,0.36789]
[1724685190574,1.09420415,2717.7,2717.3,0.7547]
[1724685191169,1.09420415,2717.7,2717.1,6.3878]
[1724685191370,1.09420415,2717.7,2717.3,0.3679]
[1724685191883,1.46206415,2717.7,2717.3,0.3679]
[1724685192577,3.2078,2717.5,2717.3,0.3679]
[1724685193483,3.2078,2717.5,2717.4,0.3679]
[1724685194376,3.2078,2717.5,2717.3,0.3679]
[1724685194577,3.2078,2717.5,2717.4,0.3679]
[1724685194780,3.2078,2717.5,2717.3,0.3679]
[1724685195074,3.2078,2717.5,2717.4,0.3679]
[1724685195463,3.2078,2717.5,2717.3,0.3679]
[1724685196176,3.2078,2717.5,2717.4,0.3679]
[1724685196677,3.2078,2717.5,2717.3,0.3679]
[1724685197884,3.2078,2717.5,2717.4,0.3679]
[1724685198085,3.2078,2717.5,2717.3,0.3679]
[1724685199183,4.59975,2717.4,2716.9,0.76147724]
[1724685199386,4.59975,2717.4,2716.9,0.00551724]
[1724685199387,0.36795,2717.0,2716.9,0.00551724]
[1724685199788,4.04875,2717.0,2716.9,0.00551724]
[1724685200092,12.25655,2717.0,2716.9,0.00551724]
[1724685200585,7.25655,2717.0,2716.9,0.00551724]
[1724685200785,12.25655,2717.0,2716.9,0.00551724]
[1724685200990,0.36799,2716.8,2716.4,0.3676]
[1724685201378,0.36797,2716.9,2716.4,0.73562]
[1724685201994,0.36797,2716.9,2716.4,0.74113724]
[1724685202491,3.2078,2717.0,2716.4,0.74113724]
[1724685202492,0.36798,2716.8,2716.4,0.74113724]
[1724685203390,3.2078,2717.0,2716.4,0.37311724]
[1724685203590,0.36797,2716.9,2716.5,0.36802]
[1724685206487,0.36798,2716.8,2716.4,0.74113724]
[1724685206698,3.2078,2717.0,2716.4,0.74113724]
[1724685206989,4.1277,2717.0,2716.4,0.74113724]
[1724685207492,0.36798,2716.8,2716.4,0.74113724]
[1724685207995,0.36798,2716.8,2716.5,0.36802]
[1724685208197,0.36798,2716.8,2716.4,0.37311724]
[1724685208399,0.36798,2716.8,2716.5,0.36801]
[1724685208992,0.36798,2716.8,2716.4,0.74113724]
[1724685209197,0.36799,2716.7,2716.4,0.74113724]
[1724685209401,4.1277,2717.0,2716.5,0.36802]
[1724685209402,0.36799,2716.8,2716.5,0.36802]
[1724685209588,4.1277,2717.0,2716.4,0.00551724]
[1724685209589,3.2078,2716.6,2716.4,0.00551724]
[1724685209794,0.92015,2716.3,2715.9,0.00360337]
[1724685210095,0.36809,2716.0,2715.9,0.00360337]
[1724685210596,3.6816,2716.0,2715.9,0.00360337]
[1724685210798,4.04969,2716.0,2715.9,0.00360337]
[1724685211601,3.6816,2716.0,2715.9,0.00360337]
[1724685211893,4.04969,2716.0,2715.9,0.00360337]
[1724685212097,7.25749,2716.0,2715.9,0.00360337]
[1724685212295,12.25749,2716.0,2715.9,0.00360337]
[1724685215201,8.57589,2716.0,2715.9,0.00360337]
[1724685215501,12.25749,2716.0,2715.9,0.00360337]
[1724685219203,13.36439,2716.0,2715.9,0.00360337]
[1724685221102,14.28461,2716.0,2715.9,0.00360337]
[1724685223516,9.28461,2716.0,2715.9,0.00360337]
[1724685227208,10.20483,2716.0,2715.9,0.00360337]
[1724685227409,0.36814,2715.6,2715.4,1.13756]
[1724685227612,0.36814,2715.6,2715.4,0.7694]
[1724685228007,0.36815,2715.5,2715.4,0.7694]
[1724685228413,0.37228539,2715.5,2715.4,0.00332667]
[1724685228918,5.15318539,2715.5,2715.4,0.00332667]
[1724685229816,6.07357539,2715.5,2715.4,0.00332667]
[1724685230017,6.07357539,2715.5,2714.8,0.7398]
[1724685230018,0.36824,2714.9,2714.8,0.3533]
[1724685230207,0.92043,2715.4,2714.4,0.3865]
[1724685230208,0.36825,2714.8,2714.4,0.3865]
[1724685230406,0.36829,2714.5,2714.4,0.3865]
[1724685230603,3.2078,2714.5,2714.1,0.3862]
[1724685230803,0.36831,2714.4,2714.1,0.3862]
[1724685231106,3.5761,2714.5,2714.1,0.38996469]
[1724685231309,3.2078,2714.5,2714.1,0.38996469]
[1724685231507,0.7235,2714.7,2714.1,0.00376469]
[1724685231508,3.2078,2714.2,2714.1,0.00376469]
[1724685232308,3.57613,2714.2,2714.1,0.00376469]
[1724685232513,3.2078,2714.2,2714.1,0.00376469]
[1724685235624,3.57613,2714.2,2714.1,0.00376469]
[1724685236822,3.2078,2714.2,2714.1,0.00376469]
[1724685239308,3.2078,2714.2,2714.1,0.37210469]
[1724685239721,3.2078,2714.2,2714.1,0.00376469]
[1724685240724,3.2078,2714.2,2714.1,4.05610469]
[1724685241018,3.2078,2714.2,2714.1,3.68776469]
[1724685241220,3.2078,2714.2,2714.1,0.00376469]
[1724685241520,3.57613,2714.2,2714.1,0.00376469]
[1724685242020,3.2078,2714.2,2714.1,0.00376469]
[1724685242415,3.2078,2714.2,2714.1,3.68776469]
[1724685245219,3.57613,2714.2,2714.1,0.00376469]
[1724685245924,4.49696,2714.2,2714.1,0.00376469]
[1724685246617,8.18096,2714.2,2714.1,0.00376469]
[1724685247123,0.36838,2713.8,2713.7,0.3678]
[1724685247615,0.7483,2714.1,2713.3,3.2078]
[1724685247820,3.2078,2713.5,2713.2,0.36846]
[1724685248124,3.2078,2713.5,2713.2,0.00419692]
[1724685248125,3.2125725,2713.5,2713.2,0.00419692]
[1724685248322,0.36845,2713.3,2713.2,0.00419692]
[1724685248620,1.28959,2713.3,2713.2,0.00419692]
[1724685249013,0.36845,2713.3,2713.2,0.00419692]
[1724685249219,3.21810001,2713.5,2713.2,0.00419692]
[1724685249413,3.21810001,2713.5,2713.3,0.36845]
[1724685249615,3.58653001,2713.5,2713.2,0.37265692]
[1724685249813,3.21810001,2713.5,2713.2,0.37265692]
[1724685250014,3.21810001,2713.5,2713.3,0.36845]
[1724685250312,3.21810001,2713.5,2713.4,0.36844]
[1724685250920,3.21810001,2713.5,2713.3,0.36844]
[1724685251921,3.21810001,2713.5,2713.4,0.36844]
[1724685253222,3.21810001,2713.5,2713.3,0.36844]
[1724685253424,3.21810001,2713.5,2713.2,41.17265692]
[1724685253632,3.58653001,2713.5,2713.2,41.17265692]
[1724685253932,0.36845,2713.3,2713.2,0.00419692]
[1724685255234,1.28959,2713.3,2713.2,0.00419692]
[1724685255522,4.97519,2713.3,2713.2,0.00419692]
[1724685256728,8.18299,2713.3,2713.2,0.00419692]
[1724685256929,3.2078,2713.3,2713.2,0.00419692]
[1724685257130,0.01030001,2713.5,2713.2,0.00419692]
[1724685257320,0.36844,2713.4,2713.2,0.00419692]
[1724685257527,0.01030001,2713.5,2713.2,0.00419692]
[1724685257834,0.36845,2713.3,2713.2,0.00419692]
[1724685258327,3.57625,2713.3,2713.2,0.00419692]
[1724685259634,7.26185,2713.3,2713.2,0.00419692]
[1724685259818,8.18299,2713.3,2713.2,0.00419692]
[1724685260738,7.26185,2713.3,2713.2,0.00419692]
[1724685262127,8.18299,2713.3,2713.2,0.00419692]
[1724685262723,7.26185,2713.3,2713.2,0.00419692]
[1724685264423,8.18299,2713.3,2713.2,0.00419692]
[1724685264825,7.26185,2713.3,2713.2,0.00419692]
[1724685265335,3.57625,2713.3,2713.2,0.00419692]
[1724685265528,3.2078,2713.3,2713.2,0.00419692]
[1724685266035,3.57625,2713.3,2713.2,0.00419692]
[1724685267432,3.57625,2713.3,2713.2,4.05826692]
[1724685267433,3.2078,2713.3,2713.2,4.05826692]
[1724685267729,3.2078,2713.3,2713.2,3.68979692]
[1724685269534,3.2078,2713.3,2713.2,4.44709692]
[1724685269926,3.2078,2713.3,2713.2,4.81556692]
[1724685271132,0.01030001,2713.5,2713.4,1.28954]
[1724685271333,3.2078,2713.9,2713.8,0.36838]
[1724685271533,3.2078,2713.9,2713.4,4.1011]
[1724685271726,3.2078,2713.9,2713.4,3.18]
[1724685272032,0.36839,2713.8,2713.4,4.26183793]
[1724685272239,0.36839,2713.8,2713.4,0.36843]
[1724685272446,0.3684,2713.7,2713.4,0.36843]
[1724685272738,0.92536654,2713.8,2713.3,0.37396751]
[1724685272925,0.36843,2713.5,2713.3,0.00552751]
[1724685273129,3.57624,2713.5,2713.3,0.00552751]
[1724685273324,0.36844,2713.4,2713.3,0.00552751]
[1724685274129,1.10984,2713.4,2713.3,0.00552751]
[1724685274434,0.36844,2713.4,2713.3,0.00552751]
[1724685275623,3.2078,2713.5,2713.3,0.00552751]
[1724685275831,3.2078,2713.5,2713.3,0.37397751]
[1724685276331,3.2078,2713.5,2713.4,0.3661]
[1724685277544,3.2078,2713.5,2713.4,0.73454]
[1724685277931,3.2078,2713.5,2713.4,4.42014]
[1724685279836,3.2078,2713.5,2713.4,0.73454]
[1724685280032,3.2078,2713.5,2713.4,0.3661]
[1724685281139,3.57622,2713.5,2713.4,0.3661]
[1724685281342,3.57622,2713.5,2713.3,0.00552751]
[1724685281343,3.2078,2713.5,2713.3,0.00552751]
[1724685281539,1.10284,2713.4,2713.3,0.00552751]
[1724685283639,2.02394,2713.4,2713.3,0.00552751]
[1724685283948,2.38244,2713.4,2713.3,0.00552751]
[1724685284242,0.36849,2713.1,2712.5,1.88227266]
[1724685284546,0.36849,2713.1,2712.8,0.36851]
[1724685284840,0.36849,2713.0,2712.7,0.36852]
[1724685285030,3.2078,2712.8,2712.7,0.36852]
[1724685285234,3.2078,2712.8,2712.7,0.37118775]
[1724685286644,3.57632,2712.8,2712.7,0.00266775]
[1724685286943,3.57632,2712.8,2712.7,0.37119775]
[1724685288242,3.57632,2712.8,2712.7,0.00266775]
[1724685288834,3.57632,2712.8,2712.7,0.37119775]
[1724685289034,3.2078,2712.8,2712.7,0.37119775]
[1724685290248,3.57632,2712.8,2712.7,0.37119775]
[1724685290637,3.57632,2712.8,2712.7,0.00266775]
[1724685291147,0.92139,2712.6,2712.2,0.36859]
[1724685291337,0.92154,2712.1,2711.8,1.34908266]
[1724685291534,0.36864,2711.9,2711.8,0.75685]
[1724685291739,1.67584751,2712.2,2711.8,0.75684]
[1724685291946,0.36864,2711.9,2711.8,0.75684]
[1724685292144,0.36862,2712.1,2712.0,0.36863]
[1724685292345,0.37284804,2712.1,2711.9,0.36864]
[1724685292648,0.37284804,2712.1,2711.9,0.36863]
[1724685292941,0.37283804,2712.1,2711.9,0.36863]
[1724685293148,0.00421804,2712.1,2711.9,0.36863]
[1724685293535,0.00421804,2712.1,2712.0,0.36863]
[1724685295644,0.00421804,2712.1,2712.0,17.07849329]
[1724685295839,0.00421804,2712.1,2712.0,17.44469329]
[1724685296152,0.00552751,2712.2,2712.1,1.29015]
[1724685296341,0.00552751,2712.2,2712.1,4.97735]
[1724685296542,0.00552751,2712.2,2712.1,14.02844859]
[1724685296945,0.00811758,2712.2,2712.1,13.10690859]
[1724685297541,0.00811758,2712.2,2712.1,8.10690859]
[1724685297840,0.00811758,2712.2,2712.1,0.36861]
[1724685298148,0.37672758,2712.2,2712.0,0.36862]
[1724685298338,0.36863,2712.1,2711.9,0.36863]
[1724685298535,0.36863,2712.1,2712.0,0.36863]
[1724685299046,0.35811758,2712.2,2711.8,0.39086685]
[1724685299047,0.72672758,2712.2,2711.8,0.39086685]
[1724685299242,0.36861,2712.1,2712.0,0.36862]
[1724685299646,0.36861,2712.1,2711.9,0.36863]
[1724685299846,3.2078,2712.0,2711.8,0.00266685]
[1724685300048,3.2078,2712.0,2711.8,0.37131685]
[1724685300344,0.36864,2711.9,2711.8,0.00266685]
[1724685300649,1.29025,2711.9,2711.8,0.00266685]
[1724685300850,0.92166,2711.8,2711.4,0.3507]
[1724685301036,0.36869,2711.6,2711.4,0.7194]
[1724685301548,0.3686,2711.9,2711.4,0.3507]
[1724685301549,3.5765,2711.5,2711.4,0.3507]
[1724685301854,3.5765,2711.5,2711.4,0.35333903]
[1724685302149,3.2078,2711.5,2711.4,0.72204903]
[1724685302744,0.36868,2711.7,2711.5,0.36869]
[1724685302946,0.36869,2711.6,2711.4,0.35333903]
[1724685303252,0.36869,2711.6,2711.4,0.72203903]
[1724685303650,0.3699,2711.7,2711.5,0.36869]
[1724685303651,0.73857,2711.7,2711.5,0.36869]
[1724685304955,0.00811758,2712.2,2712.1,0.36861]
[1724685305449,3.69531758,2712.2,2711.8,0.3496]
[1724685305650,0.3526,2712.1,2711.6,0.36868]
[1724685305849,0.3526,2712.1,2711.5,0.71829]
[1724685305850,0.36866,2711.8,2711.5,0.71829]
[1724685306049,0.36866,2711.8,2711.5,0.36869]
[1724685306243,0.36869,2711.5,2711.4,0.00263903]
[1724685306648,4.78749,2711.5,2711.4,0.00263903]
[1724685306851,6.08603,2711.5,2711.4,0.00263903]
[1724685307148,1.47629,2711.5,2711.4,0.00263903]
[1724685308457,1.1076,2711.5,2711.4,0.00263903]
[1724685308841,1.4763,2711.5,2711.4,0.00263903]
[1724685309251,5.1643,2711.5,2711.4,0.00263903]
[1724685309451,1.1076,2711.5,2711.4,0.00263903]
[1724685310353,1.4763,2711.5,2711.4,0.00263903]
[1724685310742,1.1076,2711.5,2711.4,0.00263903]
[1724685310945,0.3526,2711.5,2711.4,0.37134903]
[1724685311356,3.2078,2711.6,2711.5,0.3687]
[1724685311653,3.2078,2711.6,2711.5,4.0567]
[1724685314046,3.2078,2711.6,2711.4,0.00263903]
[1724685314047,6.8958,2711.6,2711.4,0.00263903]
[1724685314258,0.7529,2711.5,2711.4,0.00263903]
[1724685315053,1.67464,2711.5,2711.4,0.00263903]
[1724685315460,5.36264,2711.5,2711.4,0.00263903]
[1724685315861,4.4409,2711.5,2711.4,0.00263903]
[1724685318057,9.4409,2711.5,2711.4,0.00263903]
[1724685318367,4.4409,2711.5,2711.4,0.00263903]
[1724685319665,3.2078,2711.6,2711.4,0.00263903]
[1724685319861,3.2078,2711.6,2711.5,4.05669]
[1724685320168,0.00811758,2712.2,2711.5,4.05669]
[1724685320169,0.00811758,2712.2,2712.1,0.36861]
[1724685321173,0.00811758,2712.2,2712.0,0.36862]
[1724685321382,0.00811758,2712.2,2712.0,0.36861]
[1724685321677,0.00811758,2712.2,2712.1,0.36861]
[1724685322076,0.00811758,2712.2,2712.0,0.36862]
[1724685322882,0.00811758,2712.2,2711.7,4.16861086]
[1724685323087,0.00811758,2712.2,2712.0,0.36862]
[1724685323586,0.37671758,2712.2,2711.5,5.20354]
[1724685323788,0.36863,2712.0,2711.5,0.7469]
[1724685323981,3.2078,2711.7,2711.5,1.11559]
[1724685324377,0.36868,2711.6,2711.4,0.00263903]
[1724685324582,3.92948,2711.7,2711.4,0.00263903]
[1724685324786,0.36868,2711.6,2711.4,0.00263903]
[1724685325291,3.5608,2711.7,2711.4,0.00263903]
[1724685325789,0.36869,2711.5,2711.4,0.00263903]
[1724685326983,4.97843,2711.5,2711.4,0.00263903]
[1724685327991,4.05669,2711.5,2711.4,0.00263903]
[1724685329384,4.60974,2711.5,2710.8,0.3633]
[1724685329581,0.92174,2711.5,2710.8,0.3633]
[1724685329776,0.36875,2711.1,2710.8,0.73208]
[1724685330577,0.3719,2711.2,2710.8,0.36721297]
[1724685330779,0.36878,2710.9,2710.8,0.36721297]
[1724685331182,1.66186,2711.2,2710.8,0.36721297]
[1724685331490,0.36878,2711.0,2710.8,0.36721297]
[1724685331791,0.36878,2710.9,2710.8,0.36721297]
[1724685331984,0.36878,2710.9,2710.8,0.00391297]
[1724685332686,0.92202,2710.7,2710.2,1.09567]
[1724685332987,0.36884,2710.5,2710.2,0.7268]
[1724685333184,9.762563,2710.6,2710.2,0.7268]
[1724685333389,0.92218,2710.2,2709.8,0.3733]
[1724685333587,3.2078,2710.3,2709.8,0.3733]
[1724685333778,0.36887,2710.2,2709.8,0.74548442]
[1724685334091,3.21141061,2710.3,2710.2,0.36887]
[1724685334480,3.21141061,2710.3,2710.2,4.05847]
[1724685335489,0.00552751,2710.7,2710.6,0.36882]
[1724685336188,0.00552751,2710.7,2710.6,4.97967]
[1724685336391,0.00552751,2710.7,2710.6,4.05762]
[1724685336392,0.00826472,2710.7,2710.6,4.05762]
[1724685336796,0.00826472,2710.7,2710.6,0.36882]
[1724685337389,0.00826472,2710.7,2710.6,4.05762]
[1724685337986,0.00826472,2710.7,2710.6,0.36882]
[1724685338189,0.00826472,2710.7,2710.6,4.05762]
[1724685339088,0.36882,2710.6,2710.4,0.36883]
[1724685339392,0.36882,2710.6,2710.3,0.7343]
[1724685339393,0.36884,2710.4,2710.3,0.3531]
[1724685339902,0.36889,2710.1,2710.0,0.36889]
[1724685340192,0.36889,2710.1,2710.0,0.3536]
[1724685340394,3.2078,2710.2,2710.0,4.97571727]
[1724685340589,3.2078,2710.2,2710.0,0.3536]
[1724685340888,4.13001,2710.2,2709.8,0.37219442]
[1724685341092,0.36891,2710.0,2709.8,0.37219442]
[1724685341298,4.13001,2710.2,2709.8,0.37219442]
[1724685341486,4.13001,2710.2,2709.8,0.00327442]
[1724685341691,0.36891,2709.9,2709.8,0.00327442]
[1724685341889,0.36891,2710.0,2709.8,0.37220442]
[1724685342194,4.13001,2710.2,2709.8,0.37220442]
[1724685342593,0.36891,2709.9,2709.8,0.00327442]
[1724685343286,3.57671,2709.9,2709.8,0.00327442]
[1724685343485,0.36896,2709.6,2709.3,0.36898]
[1724685343991,0.36898,2709.4,2709.2,0.3503]
[1724685344190,1.66685,2709.8,2708.7,0.18328867]
[1724685344191,3.18,2709.7,2708.7,0.18328867]
[1724685344390,3.18,2709.7,2708.5,0.00446784]
[1724685344391,7.31043,2708.9,2708.5,0.00446784]
[1724685344591,0.36909,2708.6,2708.5,0.00446784]
[1724685344796,0.37331468,2708.6,2708.5,0.00446784]
[1724685345180,0.00422468,2708.6,2708.5,0.37356784]
[1724685345594,0.00422468,2708.6,2708.5,0.00446784]
[1724685345595,0.37331468,2708.6,2708.5,0.00446784]
[1724685346094,0.00422468,2708.6,2708.5,0.37356784]
[1724685346297,0.37331468,2708.6,2708.5,0.00446784]
[1724685346593,4.06531468,2708.6,2708.5,0.00446784]
[1724685346895,0.36919,2707.9,2707.0,3.2078]
[1724685347094,0.36919,2707.9,2707.4,0.36924]
[1724685347282,1.28008,2708.5,2707.3,4.1105589]
[1724685347487,0.36916,2708.1,2707.3,4.1105589]
[1724685347691,0.36917,2708.0,2707.2,40.8]
[1724685347998,0.92284,2708.3,2707.2,0.00372034]
[1724685348188,0.36918,2708.0,2707.5,0.36923]
[1724685348393,3.2078,2707.7,2707.3,3.98916463]
[1724685348595,3.2078,2707.7,2707.2,0.00372034]
[1724685348596,4.25,2707.5,2707.2,0.00372034]
[1724685348793,0.36924,2707.5,2707.2,0.00372034]
[1724685349096,0.38513802,2707.6,2707.2,0.00372034]
[1724685349284,3.2078,2707.3,2707.2,0.00372034]
[1724685349688,3.2078,2707.3,2707.2,3.69732034]
[1724685350296,3.21333802,2707.6,2707.2,4.06660034]
[1724685350499,3.21333802,2707.6,2707.3,3.6936]
[1724685350693,0.00553802,2707.6,2707.5,0.36924]
[1724685351091,0.00553802,2707.6,2707.5,13.12618256]
[1724685351588,3.2078,2708.0,2707.9,0.36918]
[1724685351989,3.2078,2708.0,2707.9,3.6928]
[1724685352203,3.2078,2708.0,2707.9,4.06198]
[1724685352504,3.2078,2708.0,2707.9,9.06198]
[1724685352794,0.00553802,2708.2,2708.0,0.36916]
[1724685352999,0.00553802,2708.2,2708.0,0.3615]
[1724685353200,0.00553802,2708.2,2708.0,4.0543]
[1724685353393,0.00553802,2708.2,2708.0,0.3615]
[1724685353997,0.00553802,2708.2,2708.0,4.0543]
[1724685354390,0.00553802,2708.2,2707.9,3.2078]
[1724685354595,0.00553802,2708.2,2707.8,0.36919]
[1724685354900,0.00553802,2708.2,2708.0,7.46999097]
[1724685355198,0.00553802,2708.2,2708.1,4.06196]
[1724685355399,0.00553802,2708.2,2708.1,49.51125097]
[1724685355693,0.00553802,2708.2,2708.1,54.14209097]
[1724685355896,0.00553802,2708.2,2708.1,54.51125097]
[1724685356891,0.00422468,2708.6,2708.5,0.3691]
[1724685357092,0.00422468,2708.6,2708.5,7.2689]
[1724685357296,3.2078,2709.2,2708.9,0.36904]
[1724685357599,3.2078,2709.2,2709.0,0.36903]
[1724685357791,3.2078,2709.2,2709.0,7.91860788]
[1724685358098,0.00553802,2709.4,2709.3,0.36899]
[1724685358291,3.21152257,2709.7,2709.6,0.36895]
[1724685358492,3.21152257,2709.7,2709.4,45.02740788]
[1724685358694,3.21152257,2709.7,2709.6,0.36895]
[1724685358892,3.21152257,2709.7,2709.6,4.05935]
[1724685359092,3.21152257,2709.7,2709.6,8.2271559]
[1724685359287,0.00372257,2709.7,2709.6,11.4349559]
[1724685359501,0.00372257,2709.7,2709.6,16.4349559]
[1724685360394,0.00553802,2709.9,2709.6,16.4349559]
[1724685360395,0.00553802,2709.9,2709.8,0.36892]
[1724685360589,0.00553802,2709.9,2709.8,4.05932]
[1724685360798,3.2078,2711.4,2710.7,0.36879]
[1724685361098,3.2078,2711.4,2710.0,0.92225]
[1724685361099,3.57652,2711.4,2710.8,0.36878]
[1724685361304,12.74880193,2711.6,2710.3,4.25]
[1724685361501,3.59792782,2711.6,2710.8,4.50221269]
[1724685361803,0.00553802,2711.5,2710.9,0.00553802]
[1724685361995,0.36876,2711.0,2710.9,0.00553802]
[1724685362902,6.8966,2711.0,2710.1,0.7027]
[1724685363090,0.36884,2710.5,2709.6,4.25]
[1724685363295,0.36884,2710.5,2709.5,3.2078]
[1724685363296,3.2078,2709.9,2709.5,0.3704]
[1724685363492,3.2078,2709.9,2709.4,0.3521]
[1724685363493,3.2078,2709.9,2709.7,4.05938976]
[1724685364003,3.2078,2709.9,2709.6,0.36895]
[1724685364199,3.2078,2709.9,2709.5,0.00553802]
[1724685364393,3.2078,2709.9,2709.5,0.37449802]
[1724685364599,3.2078,2709.9,2709.8,0.36892]
[1724685365007,3.2078,2709.9,2709.8,4.05932]
[1724685365401,3.2078,2709.9,2709.8,0.36892]
[1724685365603,3.2078,2709.9,2709.5,0.00553802]
[1724685365997,3.2078,2709.9,2709.7,0.36893]
[1724685366197,3.2078,2709.9,2709.8,0.36892]
[1724685367401,0.00553802,2710.1,2710.0,0.3689]
[1724685367907,0.00553802,2710.1,2710.0,4.0585]
[1724685369907,0.00553802,2710.1,2709.8,0.36892]
[1724685369908,0.37441802,2710.1,2709.8,0.36892]
[1724685370098,0.00553802,2710.1,2709.9,0.36891]
[1724685370696,0.36891,2710.0,2709.7,3.95772331]
[1724685370902,0.00553802,2710.1,2709.5,3.21333802]
[1724685371111,3.2078,2709.9,2709.5,0.00553802]
[1724685371303,0.36894,2709.7,2709.5,0.00553802]
[1724685371495,0.36895,2709.6,2709.5,0.00553802]
[1724685371806,0.00473189,2709.7,2709.5,0.37449802]
[1724685372210,0.00473189,2709.7,2709.6,0.36895]
[1724685373509,0.00473189,2709.7,2709.5,0.37449802]
[1724685373807,0.00473189,2709.7,2709.3,0.0031242]
[1724685373808,0.36898,2709.4,2709.3,0.0031242]
[1724685374209,4.06018,2709.4,2709.3,0.0031242]
[1724685374500,4.06018,2709.4,2708.7,0.36907]
[1724685374501,0.92249,2709.3,2708.7,0.36907]
[1724685374699,0.36904,2709.0,2708.2,1.68004]
[1724685374911,0.36905,2708.9,2708.5,4.24060538]
[1724685375213,0.7336,2709.2,2708.7,0.36907]
[1724685375398,0.36902,2709.1,2708.6,0.36908]
[1724685375609,0.92256,2709.1,2708.6,0.00410896]
[1724685375908,0.92256,2709.1,2708.6,0.37319896]
[1724685376406,0.7336,2709.2,2708.6,0.00410896]
[1724685376407,3.57687,2708.7,2708.6,0.00410896]
[1724685376808,11.8998,2708.7,2708.3,0.00553802]
[1724685377024,0.3691,2708.6,2708.3,0.00553802]
[1724685377201,6.8998,2708.7,2708.3,0.00553802]
[1724685377202,7.27441802,2708.7,2708.3,0.00553802]
[1724685377807,6.90533802,2708.7,2707.5,7.40558713]
[1724685378007,0.3691,2708.5,2707.9,0.36917]
[1724685378209,4.187,2708.6,2707.6,3.94624623]
[1724685378417,0.72442,2708.4,2707.7,0.36921]
[1724685378715,0.72442,2708.4,2707.6,3.94624623]
[1724685378716,3.2078,2708.0,2707.8,0.00553802]
[1724685379015,3.2078,2708.0,2707.9,0.36918]
[1724685379201,3.2078,2708.0,2707.8,0.37472802]
[1724685379404,3.2078,2708.0,2707.9,0.36918]
[1724685379708,3.2078,2708.0,2707.8,0.37472802]
[1724685379903,3.2078,2708.0,2707.9,0.36918]
[1724685380102,3.2078,2708.0,2707.9,8.23755828]
[1724685380321,0.00553802,2708.7,2708.6,0.36909]
[1724685381515,0.00553802,2708.7,2708.6,4.06109]
[1724685382400,0.00553802,2708.7,2708.6,0.36909]
[1724685382913,0.00553802,2708.7,2708.0,41.72292]
[1724685382914,0.00553802,2708.7,2708.0,40.8]
[1724685383210,0.36912,2708.4,2707.8,0.00553802]
[1724685383412,0.36912,2708.4,2708.0,0.36917]
[1724685383413,0.3742,2708.3,2708.0,0.36917]
[1724685383708,0.36915,2708.2,2707.8,0.37472802]
[1724685384113,0.36918,2708.0,2707.8,0.00553802]
[1724685384315,0.36918,2707.9,2707.8,0.00553802]
[1724685384611,0.36916,2708.1,2707.8,0.00553802]
[1724685385006,3.2078,2707.9,2707.8,0.00553802]
[1724685385206,3.57698,2707.9,2707.8,0.00553802]